[Event "Vastgota Open 2023"]
[Site "Skara stadshotell, Jarnvagsgatan 5, Skara, Sweden"]
[Date "2023.02.18"]
[Round "6.9"]
[White "Lind, Jan-Olov"]
[Black "Ernst, Thomas"]
[Result "1-0"]
[TimeControl "15 minutes + 5 seconds per move from move one (Round 1 - 2) / 30 minutes + 10 seconds per move from move one (Round 3 - 9)"]
[BlackTitle "GM"]
[WhiteFideId "1701193"]
[BlackFideId "1700065"]
[WhiteElo "2096"]
[BlackElo "2315"]

1. e4 {[%clk 00:30:14]} {[%emt 00:00:04]} e5 {[%clk 00:30:17]} {[%emt
00:00:03]} 2. Nf3 {[%clk 00:30:22]} {[%emt 00:00:02]} Nc6 {[%clk 00:30:26]}
{[%emt 00:00:02]} 3. d4 {[%clk 00:30:30]} {[%emt 00:00:02]} exd4 {[%clk
00:30:33]} {[%emt 00:00:03]} 4. c3 {[%clk 00:30:38]} {[%emt 00:00:02]} dxc3
{[%clk 00:28:30]} {[%emt 00:02:13]} 5. Nxc3 {[%clk 00:30:45]} {[%emt 00:00:03]}
Bb4 {[%clk 00:28:19]} {[%emt 00:00:21]} 6. Bc4 {[%clk 00:30:49]} {[%emt
00:00:06]} Nge7 {[%clk 00:28:18]} {[%emt 00:00:10]} 7. Ng5 {[%clk 00:29:23]}
{[%emt 00:01:36]} Ne5 {[%clk 00:27:58]} {[%emt 00:00:31]} 8. Bb3 {[%clk
00:29:19]} {[%emt 00:00:13]} h6 {[%clk 00:27:44]} {[%emt 00:00:24]} 9. f4
{[%clk 00:27:24]} {[%emt 00:02:05]} hxg5 {[%clk 00:27:16]} {[%emt 00:00:38]} 10.
fxe5 {[%clk 00:27:31]} {[%emt 00:00:04]} Bxc3+ {[%clk 00:27:16]} {[%emt
00:00:11]} 11. bxc3 {[%clk 00:27:39]} {[%emt 00:00:02]} Ng6 {[%clk 00:26:26]}
{[%emt 00:00:59]} 12. Qd5 {[%clk 00:25:57]} {[%emt 00:01:51]} Qe7 {[%clk
00:25:28]} {[%emt 00:01:08]} 13. Ba3 {[%clk 00:21:03]} {[%emt 00:05:05]} Qe6
{[%clk 00:25:10]} {[%emt 00:00:27]} 14. O-O {[%clk 00:18:58]} {[%emt 00:02:15]}
Qxd5 {[%clk 00:24:23]} {[%emt 00:00:58]} 15. exd5 {[%clk 00:18:24]} {[%emt
00:00:43]} Nxe5 {[%clk 00:24:13]} {[%emt 00:00:20]} 16. d6 {[%clk 00:18:02]}
{[%emt 00:00:33]} cxd6 {[%clk 00:22:28]} {[%emt 00:01:55]} 17. Bxd6 {[%clk
00:16:35]} {[%emt 00:01:36]} f6 {[%clk 00:22:34]} {[%emt 00:00:04]} 18. Rae1
{[%clk 00:15:26]} {[%emt 00:01:19]} a5 {[%clk 00:21:57]} {[%emt 00:00:47]} 19.
Bxe5 {[%clk 00:14:51]} {[%emt 00:00:46]} fxe5 {[%clk 00:22:05]} {[%emt
00:00:02]} 20. Rxe5+ {[%clk 00:14:57]} {[%emt 00:00:04]} Kd8 {[%clk 00:22:12]}
{[%emt 00:00:02]} 21. Rxg5 {[%clk 00:14:42]} {[%emt 00:00:26]} a4 {[%clk
00:22:01]} {[%emt 00:00:22]} 22. Bc4 {[%clk 00:12:54]} {[%emt 00:01:57]} b6
{[%clk 00:21:58]} {[%emt 00:00:13]} 23. Rf7 {[%clk 00:09:50]} {[%emt 00:03:14]}
Ba6 {[%clk 00:21:46]} {[%emt 00:00:21]} 24. Bxa6 {[%clk 00:09:16]} {[%emt
00:00:45]} Rxa6 {[%clk 00:21:53]} {[%emt 00:00:03]} 25. Rgxg7 {[%clk 00:09:05]}
{[%emt 00:00:20]} Ra7 {[%clk 00:22:01]} {[%emt 00:00:03]} 26. a3 {[%clk
00:05:02]} {[%emt 00:04:14]} Rc7 {[%clk 00:21:56]} {[%emt 00:00:14]} 27. Rf3
{[%clk 00:04:31]} {[%emt 00:00:41]} Rc5 {[%clk 00:21:33]} {[%emt 00:00:33]} 28.
Rd3 {[%emt 00:00:59]} {Black touched the wite pawn on c3 and therefore had to
capture it on move 28.} 1-0

[Event "Vastgota Open 2023"]
[Site "Skara stadshotell, Jarnvagsgatan 5, Skara, Sweden"]
[Date "2023.02.18"]
[Round "6.10"]
[White "Lindgren, Philip"]
[Black "Danielsson, Fredrik"]
[Result "1-0"]
[TimeControl "15 minutes + 5 seconds per move from move one (Round 1 - 2) / 30 minutes + 10 seconds per move from move one (Round 3 - 9)"]
[WhiteTitle "IM"]
[WhiteFideId "1713230"]
[BlackFideId "1729993"]
[WhiteElo "2282"]
[BlackElo "2071"]

1. d4 {[%clk 00:29:24]} {[%emt 00:00:55]} Nf6 {[%clk 00:30:16]} {[%emt
00:00:04]} 2. c4 {[%clk 00:29:13]} {[%emt 00:00:21]} g6 {[%clk 00:30:24]}
{[%emt 00:00:02]} 3. Nc3 {[%clk 00:28:59]} {[%emt 00:00:25]} d5 {[%clk
00:30:31]} {[%emt 00:00:03]} 4. cxd5 {[%clk 00:28:28]} {[%emt 00:00:41]} Nxd5
{[%clk 00:30:38]} {[%emt 00:00:03]} 5. Bd2 {[%clk 00:28:27]} {[%emt 00:00:10]}
Nb6 {[%clk 00:30:42]} {[%emt 00:00:06]} 6. Nf3 {[%clk 00:28:22]} {[%emt
00:00:16]} Bg7 {[%clk 00:30:26]} {[%emt 00:00:26]} 7. Bf4 {[%clk 00:25:39]}
{[%emt 00:02:53]} O-O {[%clk 00:29:53]} {[%emt 00:00:43]} 8. e3 {[%clk
00:24:05]} {[%emt 00:01:44]} c5 {[%clk 00:27:44]} {[%emt 00:02:18]} 9. dxc5
{[%clk 00:22:25]} {[%emt 00:01:51]} N6d7 {[%clk 00:27:46]} {[%emt 00:00:07]} 10.
Bc4 {[%clk 00:18:09]} {[%emt 00:04:26]} Nxc5 {[%clk 00:21:54]} {[%emt
00:06:03]} 11. O-O {[%clk 00:18:11]} {[%emt 00:00:08]} Nc6 {[%clk 00:21:37]}
{[%emt 00:00:27]} 12. Qe2 {[%clk 00:18:02]} {[%emt 00:00:19]} Bg4 {[%clk
00:17:57]} {[%emt 00:03:49]} 13. h3 {[%clk 00:14:24]} {[%emt 00:03:48]} Bxf3
{[%clk 00:18:02]} {[%emt 00:00:06]} 14. Qxf3 {[%clk 00:14:29]} {[%emt
00:00:04]} Ne5 {[%clk 00:09:27]} {[%emt 00:08:46]} 15. Bxe5 {[%clk 00:14:10]}
{[%emt 00:00:29]} Bxe5 {[%clk 00:09:35]} {[%emt 00:00:02]} 16. Rfd1 {[%clk
00:13:43]} {[%emt 00:00:36]} Qa5 {[%clk 00:09:39]} {[%emt 00:00:07]} 17. Nd5
{[%clk 00:11:47]} {[%emt 00:02:06]} Bxb2 {[%clk 00:07:32]} {[%emt 00:02:17]} 18.
Nxe7+ {[%clk 00:11:08]} {[%emt 00:00:49]} Kg7 {[%clk 00:07:40]} {[%emt
00:00:02]} 19. Rab1 {[%clk 00:10:56]} {[%emt 00:00:22]} Qc3 {[%clk 00:06:50]}
{[%emt 00:01:01]} 20. Qe2 {[%clk 00:03:48]} {[%emt 00:07:16]} Ba3 {[%clk
00:06:30]} {[%emt 00:00:31]} 21. Nd5 {[%clk 00:02:38]} {[%emt 00:01:20]} Qe5
{[%clk 00:06:16]} {[%emt 00:00:23]} 22. Qc2 {[%clk 00:02:08]} {[%emt 00:00:41]}
b6 {[%clk 00:05:39]} {[%emt 00:00:47]} 23. f4 {[%clk 00:02:16]} {[%emt
00:00:02]} Qe4 {[%clk 00:05:32]} {[%emt 00:00:17]} 24. Qc3+ {[%clk 00:01:30]}
{[%emt 00:00:56]} f6 {[%clk 00:04:58]} {[%emt 00:00:44]} 25. Be2 {[%clk
00:00:25]} {[%emt 00:01:14]} Rad8 {[%clk 00:02:49]} {[%emt 00:02:19]} 26. Bf3
{[%clk 00:00:21]} {[%emt 00:00:15]} Qa4 {[%clk 00:01:54]} {[%emt 00:01:03]} 27.
Kh2 {[%clk 00:00:17]} {[%emt 00:00:16]} Ne6 {[%clk 00:00:52]} {[%emt 00:01:12]}
28. e4 {[%clk 00:00:11]} {[%emt 00:00:15]} Bc5 {[%clk 00:00:50]} {[%emt
00:00:11]} 29. e5 {[%clk 00:00:13]} {[%emt 00:00:10]} Nxf4 {[%clk 00:00:12]}
{[%emt 00:00:48]} 30. exf6+ {[%clk 00:00:13]} {[%emt 00:00:09]} Kh6 {[%clk
00:00:12]} {[%emt 00:00:10]} 31. Qc1 {[%clk 00:00:12]} {[%emt 00:00:11]} g5
{[%clk 00:00:14]} {[%emt 00:00:09]} 32. h4 {[%clk 00:00:18]} {[%emt 00:00:04]}
Rxd5 {[%clk 00:00:15]} {[%emt 00:00:10]} 33. Rxd5 {[%clk 00:00:19]} {[%emt
00:00:08]} Rxf6 {[%clk 00:00:15]} {[%emt 00:00:10]} 34. hxg5+ {[%clk 00:00:27]}
{[%emt 00:00:02]} Kg6 {[%clk 00:00:13]} {[%emt 00:00:12]} 35. Rxc5 {[%clk
00:00:14]} {[%emt 00:00:22]} Nd3 {[%emt 00:00:13]} 1-0

[Event "Vastgota Open 2023"]
[Site "Skara stadshotell, Jarnvagsgatan 5, Skara, Sweden"]
[Date "2023.02.18"]
[Round "6.11"]
[White "Bjorkeroth, Johan"]
[Black "Eklund, Lars-Goran"]
[Result "0-1"]
[TimeControl "15 minutes + 5 seconds per move from move one (Round 1 - 2) / 30 minutes + 10 seconds per move from move one (Round 3 - 9)"]
[BlackTitle "FM"]
[WhiteFideId "1719106"]
[BlackFideId "1701010"]
[WhiteElo "2032"]
[BlackElo "2196"]

1. Nf3 {[%clk 00:30:06]} {[%emt 00:00:14]} d5 {[%clk 00:30:19]} {[%emt
00:00:02]} 2. c4 {[%clk 00:30:15]} c6 {[%clk 00:30:27]} {[%emt 00:00:02]} 3. g3
{[%clk 00:30:24]} {[%emt 00:00:01]} e6 {[%clk 00:29:04]} {[%emt 00:01:33]} 4.
Bg2 {[%clk 00:30:29]} {[%emt 00:00:04]} f5 {[%clk 00:29:12]} {[%emt 00:00:03]}
5. b3 {[%clk 00:30:10]} {[%emt 00:00:28]} Nf6 {[%clk 00:29:19]} {[%emt
00:00:03]} 6. Bb2 {[%clk 00:30:16]} {[%emt 00:00:03]} Be7 {[%clk 00:27:34]}
{[%emt 00:01:56]} 7. O-O {[%clk 00:29:31]} {[%emt 00:00:55]} O-O {[%clk
00:27:43]} {[%emt 00:00:02]} 8. Qc2 {[%clk 00:29:27]} {[%emt 00:00:13]} a5
{[%clk 00:25:35]} {[%emt 00:02:18]} 9. Nc3 {[%clk 00:26:29]} {[%emt 00:03:08]}
Qe8 {[%clk 00:22:08]} {[%emt 00:03:37]} 10. d3 {[%clk 00:22:07]} {[%emt
00:04:32]} Nbd7 {[%clk 00:20:10]} {[%emt 00:02:08]} 11. e4 {[%clk 00:19:31]}
{[%emt 00:02:45]} dxe4 {[%clk 00:20:19]} {[%emt 00:00:03]} 12. dxe4 {[%clk
00:19:32]} {[%emt 00:00:09]} f4 {[%clk 00:20:28]} {[%emt 00:00:01]} 13. e5
{[%clk 00:18:07]} {[%emt 00:01:34]} Ng4 {[%clk 00:19:24]} {[%emt 00:01:15]} 14.
Ne2 {[%clk 00:14:38]} {[%emt 00:03:38]} fxg3 {[%clk 00:19:22]} {[%emt
00:00:12]} 15. Nxg3 {[%clk 00:13:35]} {[%emt 00:01:13]} Nc5 {[%clk 00:11:25]}
{[%emt 00:08:07]} 16. Rad1 {[%clk 00:11:37]} {[%emt 00:02:08]} a4 {[%clk
00:08:40]} {[%emt 00:02:55]} 17. b4 {[%clk 00:10:51]} {[%emt 00:00:55]} a3
{[%clk 00:08:25]} {[%emt 00:00:26]} 18. Bc3 {[%clk 00:09:01]} {[%emt 00:01:59]}
Na6 {[%clk 00:04:57]} {[%emt 00:03:39]} 19. Qd2 {[%clk 00:08:02]} {[%emt
00:01:08]} c5 {[%clk 00:04:40]} {[%emt 00:00:28]} 20. b5 {[%clk 00:07:55]}
{[%emt 00:00:18]} Nb4 {[%clk 00:04:07]} {[%emt 00:00:42]} 21. Bxb4 {[%clk
00:07:54]} {[%emt 00:00:11]} cxb4 {[%clk 00:04:16]} {[%emt 00:00:01]} 22. h3
{[%clk 00:07:57]} {[%emt 00:00:07]} Nh6 {[%clk 00:03:49]} {[%emt 00:00:38]} 23.
Kh2 {[%clk 00:07:05]} {[%emt 00:01:02]} Nf5 {[%clk 00:02:24]} {[%emt 00:01:35]}
24. Ne4 {[%clk 00:06:26]} {[%emt 00:00:48]} Qh5 {[%clk 00:01:41]} {[%emt
00:00:54]} 25. Nd6 {[%clk 00:04:56]} {[%emt 00:01:39]} Nh4 {[%clk 00:01:44]}
{[%emt 00:00:07]} 26. Nxh4 {[%clk 00:04:51]} {[%emt 00:00:16]} Qxh4 {[%clk
00:01:52]} {[%emt 00:00:02]} 27. f4 {[%clk 00:03:58]} {[%emt 00:01:02]} Rb8
{[%clk 00:01:23]} {[%emt 00:00:39]} 28. c5 {[%clk 00:03:16]} {[%emt 00:00:53]}
b3 {[%clk 00:00:40]} {[%emt 00:00:53]} 29. axb3 {[%clk 00:03:25]} g5 {[%clk
00:00:49]} {[%emt 00:00:01]} 30. fxg5 {[%clk 00:02:05]} {[%emt 00:01:30]} Rxf1
{[%clk 00:00:33]} {[%emt 00:00:25]} 31. Rxf1 {[%clk 00:02:09]} {[%emt
00:00:06]} Bxg5 {[%clk 00:00:40]} {[%emt 00:00:03]} 32. Qf2 {[%clk 00:01:14]}
{[%emt 00:01:06]} Qxf2 {[%clk 00:00:24]} {[%emt 00:00:25]} 33. Rxf2 {[%clk
00:01:23]} {[%emt 00:00:01]} Ra8 {[%clk 00:00:13]} {[%emt 00:00:22]} 34. Ra2
{[%clk 00:01:28]} {[%emt 00:00:04]} Bf4+ {[%clk 00:00:20]} {[%emt 00:00:04]} 35.
Kh1 {[%clk 00:01:05]} {[%emt 00:00:33]} Bxe5 {[%clk 00:00:28]} {[%emt
00:00:01]} 36. Nc4 {[%clk 00:00:55]} {[%emt 00:00:20]} Bd4 {[%clk 00:00:20]}
{[%emt 00:00:18]} 37. c6 {[%clk 00:00:58]} {[%emt 00:00:07]} bxc6 {[%clk
00:00:12]} {[%emt 00:00:18]} 38. bxc6 {[%clk 00:00:51]} {[%emt 00:00:17]} Bc5
{[%clk 00:00:19]} {[%emt 00:00:03]} 39. Kh2 {[%clk 00:00:22]} {[%emt 00:00:40]}
Kf7 {[%clk 00:00:28]} {[%emt 00:00:01]} 40. Kg3 {[%clk 00:00:25]} {[%emt
00:00:07]} Rb8 {[%clk 00:00:37]} 41. Na5 {[%clk 00:00:13]} {[%emt 00:00:22]}
Rb5 {[%clk 00:00:39]} {[%emt 00:00:07]} 42. Nb7 {[%clk 00:00:13]} {[%emt
00:00:10]} Rxb3+ {[%clk 00:00:47]} {[%emt 00:00:03]} 43. Bf3 {[%clk 00:00:14]}
{[%emt 00:00:09]} Rb2 {[%clk 00:00:40]} {[%emt 00:00:17]} 44. Ra1 {[%clk
00:00:11]} {[%emt 00:00:12]} Bb4 {[%clk 00:00:49]} {[%emt 00:00:01]} 45. c7
{[%clk 00:00:17]} {[%emt 00:00:05]} Bxb7 {[%clk 00:00:28]} {[%emt 00:00:31]} 46.
Bxb7 {[%clk 00:00:25]} {[%emt 00:00:01]} Bd6+ {[%clk 00:00:38]} 47. Kg4 {[%clk
00:00:30]} {[%emt 00:00:06]} Bxc7 {[%clk 00:00:46]} {[%emt 00:00:02]} 48. Rxa3
{[%clk 00:00:33]} {[%emt 00:00:06]} Rxb7 {[%clk 00:00:55]} {[%emt 00:00:01]}
0-1

[Event "Vastgota Open 2023"]
[Site "Skara stadshotell, Jarnvagsgatan 5, Skara, Sweden"]
[Date "2023.02.18"]
[Round "6.12"]
[White "Andersson, Fredrik"]
[Black "Karlsson, Roger"]
[Result "1-0"]
[TimeControl "15 minutes + 5 seconds per move from move one (Round 1 - 2) / 30 minutes + 10 seconds per move from move one (Round 3 - 9)"]
[WhiteTitle "FM"]
[WhiteFideId "1706187"]
[BlackFideId "1732293"]
[WhiteElo "2194"]
[BlackElo "1723"]

1. e4 {[%clk 00:30:18]} {[%emt 00:00:01]} d6 {[%clk 00:30:16]} {[%emt
00:00:04]} 2. d4 {[%clk 00:30:24]} {[%emt 00:00:05]} Nf6 {[%clk 00:30:24]}
{[%emt 00:00:02]} 3. Nc3 {[%clk 00:30:32]} {[%emt 00:00:01]} e5 {[%clk
00:30:33]} {[%emt 00:00:02]} 4. Nf3 {[%clk 00:30:28]} {[%emt 00:00:13]} Nbd7
{[%clk 00:30:39]} {[%emt 00:00:04]} 5. Bc4 {[%clk 00:30:22]} {[%emt 00:00:16]}
h6 {[%clk 00:30:48]} {[%emt 00:00:02]} 6. O-O {[%clk 00:29:56]} {[%emt
00:00:36]} Be7 {[%clk 00:30:57]} {[%emt 00:00:01]} 7. a4 {[%clk 00:29:34]}
{[%emt 00:00:32]} O-O {[%clk 00:30:53]} {[%emt 00:00:14]} 8. Re1 {[%clk
00:27:31]} {[%emt 00:02:13]} c6 {[%clk 00:30:21]} {[%emt 00:00:42]} 9. a5
{[%clk 00:27:24]} {[%emt 00:00:17]} Kh7 {[%clk 00:30:22]} {[%emt 00:00:09]} 10.
h3 {[%clk 00:26:03]} {[%emt 00:01:32]} Qe8 {[%clk 00:29:32]} {[%emt 00:00:58]}
11. Be3 {[%clk 00:25:55]} {[%emt 00:00:19]} Ng8 {[%clk 00:28:25]} {[%emt
00:01:17]} 12. d5 {[%clk 00:24:55]} {[%emt 00:01:10]} a6 {[%clk 00:27:50]}
{[%emt 00:00:45]} 13. dxc6 {[%clk 00:23:09]} {[%emt 00:01:56]} bxc6 {[%clk
00:27:55]} {[%emt 00:00:04]} 14. Na4 {[%clk 00:23:06]} {[%emt 00:00:12]} Ngf6
{[%clk 00:26:22]} {[%emt 00:01:44]} 15. Qd3 {[%clk 00:21:58]} {[%emt 00:01:19]}
Bb7 {[%clk 00:25:27]} {[%emt 00:01:04]} 16. Bb3 {[%clk 00:19:51]} {[%emt
00:02:17]} d5 {[%clk 00:24:50]} {[%emt 00:00:47]} 17. Nd2 {[%clk 00:15:37]}
{[%emt 00:04:25]} Kh8 {[%clk 00:23:38]} {[%emt 00:01:22]} 18. f3 {[%clk
00:14:25]} {[%emt 00:01:22]} Bb4 {[%clk 00:18:58]} {[%emt 00:04:49]} 19. c3
{[%clk 00:13:19]} {[%emt 00:01:17]} Be7 {[%clk 00:17:18]} {[%emt 00:01:50]} 20.
Nb6 {[%clk 00:13:13]} {[%emt 00:00:15]} Nxb6 {[%clk 00:17:00]} {[%emt
00:00:28]} 21. Bxb6 {[%clk 00:13:22]} {[%emt 00:00:01]} Qb8 {[%clk 00:16:13]}
{[%emt 00:00:57]} 22. Qe2 {[%clk 00:12:52]} {[%emt 00:00:41]} Nd7 {[%clk
00:16:02]} {[%emt 00:00:21]} 23. Bf2 {[%clk 00:12:39]} {[%emt 00:00:22]} f6
{[%clk 00:15:31]} {[%emt 00:00:41]} 24. Bc2 {[%clk 00:12:37]} {[%emt 00:00:12]}
Bc5 {[%clk 00:15:40]} {[%emt 00:00:01]} 25. b4 {[%clk 00:12:00]} {[%emt
00:00:48]} Bxf2+ {[%clk 00:15:40]} {[%emt 00:00:10]} 26. Qxf2 {[%clk 00:12:07]}
{[%emt 00:00:02]} Qa7 {[%clk 00:15:41]} {[%emt 00:00:09]} 27. Nb3 {[%clk
00:12:00]} {[%emt 00:00:18]} Qxf2+ {[%clk 00:15:44]} {[%emt 00:00:06]} 28. Kxf2
{[%clk 00:12:09]} Rac8 {[%clk 00:15:26]} {[%emt 00:00:29]} 29. Nc5 {[%clk
00:12:08]} {[%emt 00:00:11]} Nxc5 {[%clk 00:14:48]} {[%emt 00:00:48]} 30. bxc5
{[%clk 00:12:17]} Rcd8 {[%clk 00:14:05]} {[%emt 00:00:54]} 31. Rab1 {[%clk
00:12:02]} {[%emt 00:00:25]} Bc8 {[%clk 00:14:14]} {[%emt 00:00:02]} 32. Rb6
{[%clk 00:11:57]} {[%emt 00:00:15]} d4 {[%clk 00:14:18]} {[%emt 00:00:06]} 33.
cxd4 {[%clk 00:11:46]} {[%emt 00:00:21]} Rxd4 {[%clk 00:14:26]} {[%emt
00:00:02]} 34. Rxc6 {[%clk 00:11:48]} {[%emt 00:00:07]} Rfd8 {[%clk 00:13:57]}
{[%emt 00:00:38]} 35. Ke3 {[%clk 00:11:03]} {[%emt 00:00:56]} Kh7 {[%clk
00:12:53]} {[%emt 00:01:15]} 36. Re2 {[%clk 00:09:39]} {[%emt 00:01:34]} Bd7
{[%clk 00:12:45]} {[%emt 00:00:17]} 37. Rd6 {[%clk 00:09:46]} {[%emt 00:00:03]}
Bb5 {[%clk 00:10:52]} {[%emt 00:02:04]} 38. Rd2 {[%clk 00:09:12]} {[%emt
00:00:44]} Rxd2 {[%clk 00:10:45]} {[%emt 00:00:16]} 39. Kxd2 {[%clk 00:09:14]}
{[%emt 00:00:08]} Rc8 {[%clk 00:10:50]} {[%emt 00:00:06]} 40. c6 {[%clk
00:08:40]} {[%emt 00:00:44]} Bxc6 {[%clk 00:05:04]} {[%emt 00:05:55]} 41. Bd3
{[%clk 00:08:36]} {[%emt 00:00:14]} Rc7 {[%clk 00:05:10]} {[%emt 00:00:04]} 42.
Bxa6 {[%clk 00:08:37]} {[%emt 00:00:09]} f5 {[%clk 00:04:52]} {[%emt 00:00:28]}
43. exf5 {[%clk 00:08:35]} {[%emt 00:00:12]} e4 {[%clk 00:04:51]} {[%emt
00:00:11]} 44. fxe4 {[%clk 00:08:10]} {[%emt 00:00:35]} Bxe4 {[%clk 00:04:56]}
{[%emt 00:00:06]} 45. Bd3 {[%clk 00:07:07]} {[%emt 00:01:13]} Bxg2 {[%clk
00:04:20]} {[%emt 00:00:46]} 46. f6+ {[%clk 00:07:14]} {[%emt 00:00:03]} Kg8
{[%clk 00:04:29]} 47. fxg7 {[%clk 00:06:43]} {[%emt 00:00:42]} Rxg7 {[%clk
00:02:43]} {[%emt 00:01:56]} 48. Rd8+ {[%clk 00:06:34]} {[%emt 00:00:18]} Kf7
{[%clk 00:02:45]} {[%emt 00:00:08]} 49. Rd7+ {[%clk 00:06:44]} {[%emt
00:00:01]} Kf6 {[%clk 00:02:45]} {[%emt 00:00:10]} 50. Rxg7 {[%clk 00:06:53]}
{[%emt 00:00:02]} Kxg7 {[%clk 00:02:53]} {[%emt 00:00:01]} 51. Ke3 {[%clk
00:07:02]} Bb7 {[%clk 00:02:59]} {[%emt 00:00:05]} 52. Be4 {[%clk 00:06:59]}
{[%emt 00:00:13]} Ba6 {[%clk 00:03:04]} {[%emt 00:00:04]} 53. Kd4 {[%clk
00:06:54]} {[%emt 00:00:16]} Kf6 {[%emt 00:00:10]} 54. Kc5 Ke5 {[%clk
00:02:54]} {[%emt 00:00:24]} 55. Kb6 {[%clk 00:07:01]} {[%emt 00:00:08]} Bf1
{[%clk 00:03:00]} {[%emt 00:00:05]} 56. Bc6 {[%clk 00:07:06]} {[%emt 00:00:04]}
Kf4 {[%clk 00:03:01]} {[%emt 00:00:10]} 57. Bb5 {[%clk 00:07:14]} {[%emt
00:00:01]} Bg2 {[%clk 00:03:10]} {[%emt 00:00:02]} 58. a6 {[%clk 00:07:19]}
{[%emt 00:00:05]} Ba8 {[%clk 00:03:13]} {[%emt 00:00:06]} 59. Bc6 {[%clk
00:07:20]} {[%emt 00:00:09]} 1-0